bitfinex-derivatives/quotes_BNBF0:USTF0_20260114
["timestamp","ask_amount","ask_price","bid_price","bid_amount"]
[1768403216802,1.566,941.85,940.05,2.5741607]
[1768403217201,1.566,941.85,939.94,2.5741607]
[1768403217704,1.566,941.85,939.91,2.5741607]
[1768403218202,1.566,941.85,939.87,2.5741607]
[1768403218900,0.74859087,941.84,939.84,2.5741607]
[1768403219101,0.74859087,941.83,939.84,2.5741607]
[1768403219306,0.74859087,941.82,939.84,2.5741607]
[1768403219506,1.566,941.85,939.73,2.5741607]
[1768403219802,0.74835579,941.84,939.73,2.5741607]
[1768403220002,0.74835579,941.83,939.73,2.5741607]
[1768403220204,0.74835579,941.82,939.73,2.5741607]
[1768403220506,1.566,941.85,939.79,2.5741607]
[1768403220902,1.566,941.85,939.8,2.5741607]
[1768403221908,1.566,941.85,939.76,2.5741607]
[1768403222405,1.566,941.85,939.78,2.5741607]
[1768403223515,1.566,941.85,939.81,2.5741607]
[1768403224017,1.566,941.85,939.84,2.5741607]
[1768403224616,1.566,941.85,939.85,2.5741607]
[1768403225713,1.566,941.85,939.81,2.5741607]
[1768403226613,1.566,941.85,939.8,2.5741607]
[1768403227114,1.566,941.85,939.81,2.5741607]
[1768403227617,1.566,941.85,939.47,3.6689282]
[1768403227618,1.566,941.85,939.78,2.5741607]
[1768403228823,1.566,941.85,939.77,2.5741607]
[1768403229224,1.566,941.85,939.76,2.5741607]
[1768403229424,1.566,941.85,939.63,2.5741607]
[1768403229923,1.566,941.85,939.62,2.5741607]
[1768403230424,1.566,941.85,939.61,2.5741607]
[1768403231018,0.00854468,942.61,939.61,2.5741607]
[1768403231223,0.74579675,942.6,939.61,2.5741607]
[1768403231423,0.74579675,942.59,939.61,2.5741607]
[1768403231719,0.74579675,942.58,939.68,2.5741607]
[1768403231923,0.74579675,942.57,939.68,2.5741607]
[1768403232124,0.74579675,942.56,939.69,2.5741607]
[1768403232324,0.74579675,942.55,939.69,2.5741607]
[1768403232519,0.74579675,942.54,939.69,2.5741607]
[1768403232823,0.74579675,942.53,939.75,2.5741607]
[1768403233021,0.74579675,942.52,939.75,2.5741607]
[1768403233223,0.74579675,942.51,939.76,2.5741607]
[1768403233423,0.74579675,942.5,939.76,2.5741607]
[1768403233621,0.74579675,942.49,939.76,2.5741607]
[1768403233820,0.74579675,942.48,939.76,2.5741607]
[1768403234024,0.74579675,942.47,939.76,2.5741607]
[1768403234220,0.74579675,942.46,939.76,2.5741607]
[1768403234424,0.74579675,942.45,939.76,2.5741607]
[1768403234724,0.74579675,942.44,939.75,2.5741607]
[1768403235020,0.74579675,942.43,939.75,2.5741607]
[1768403235326,0.74579675,942.42,939.73,2.5741607]
[1768403235527,0.74579675,942.41,939.73,2.5741607]
[1768403235725,0.74579675,942.4,939.63,2.5741607]
[1768403235926,0.74579675,942.39,939.63,2.5741607]
[1768403236127,0.74579675,942.38,939.63,2.5741607]
[1768403236326,0.74579675,942.37,939.63,2.5741607]
[1768403236527,0.74579675,942.36,939.63,2.5741607]
[1768403236721,0.74579675,942.36,939.29,3.6689282]
[1768403236722,0.74579675,942.35,939.65,2.5741607]
[1768403236926,0.74579675,942.34,939.65,2.5741607]
[1768403237226,0.74579675,942.33,939.65,2.5741607]
[1768403237430,0.74579675,942.32,939.65,2.5741607]
[1768403237628,0.74579675,942.31,939.65,2.5741607]
[1768403237827,0.74579675,942.3,939.65,2.5741607]
[1768403238027,0.74579675,942.29,939.22,2.5741607]
[1768403238229,0.74579675,942.28,939.22,2.5741607]
[1768403238424,0.74579675,942.27,939.22,2.5741607]
[1768403238624,0.74579675,942.26,939.17,2.5741607]
[1768403238828,0.74579675,942.25,939.17,2.5741607]
[1768403239023,0.74579675,942.24,939.15,2.5741607]
[1768403239224,0.74579675,942.23,939.15,2.5741607]
[1768403239426,0.74579675,942.22,939.05,2.5741607]
[1768403239726,0.74579675,942.21,938.89,2.5741607]
[1768403239927,0.74579675,942.2,938.89,2.5741607]
[1768403240126,0.74579675,942.19,938.86,2.5741607]
[1768403240329,0.74579675,942.18,938.86,2.5741607]
[1768403240528,0.74579675,942.17,938.88,2.5741607]
[1768403240727,0.74579675,942.16,938.88,2.5741607]
[1768403240925,0.74579675,942.15,938.88,2.5741607]
[1768403241128,0.74579675,942.14,938.89,2.5741607]
[1768403241328,0.74579675,942.13,938.89,2.5741607]
[1768403241527,0.74579675,942.12,938.89,2.5741607]
[1768403241728,0.74579675,942.11,938.9,2.5741607]
[1768403241932,0.74579675,942.1,938.9,2.5741607]
[1768403242128,0.74579675,942.09,938.9,2.5741607]
[1768403242328,0.74579675,942.08,938.9,2.5741607]
[1768403242531,0.74579675,942.07,938.9,2.5741607]
[1768403242729,0.74579675,942.06,938.91,2.5741607]
[1768403242929,0.74579675,942.05,938.91,2.5741607]
[1768403243132,0.74579675,942.04,938.91,2.5741607]
[1768403243331,0.74579675,942.03,938.91,2.5741607]
[1768403243632,0.74579675,942.02,939.02,2.5741607]
[1768403243829,0.74579675,942.01,939.02,2.5741607]
[1768403244031,0.74579675,942.0,939.02,2.5741607]
[1768403244233,0.74579675,941.99,939.01,2.5741607]
[1768403244432,0.74579675,941.98,939.01,2.5741607]
[1768403244730,0.74579675,941.97,938.99,2.5741607]
[1768403245033,0.74579675,941.96,938.99,2.5741607]
[1768403245233,0.74579675,941.95,939.0,2.5741607]
[1768403245430,0.74579675,941.94,939.0,2.5741607]
[1768403245632,0.74579675,941.93,939.0,2.5741607]
[1768403245833,0.74579675,941.92,938.98,2.5741607]
[1768403246029,0.74579675,941.91,938.98,2.5741607]
[1768403246335,0.74579675,941.9,938.99,2.5741607]
[1768403246633,0.74579675,941.89,938.99,2.5741607]
[1768403246834,0.74579675,941.88,938.94,2.5741607]
[1768403247034,0.74579675,941.87,938.94,2.5741607]
[1768403247333,0.74579675,941.86,938.96,2.5741607]
[1768403247533,0.74579675,941.85,938.96,2.5741607]
[1768403247732,0.74579675,941.84,938.96,2.5741607]
[1768403247935,0.74579675,941.83,938.95,2.5741607]
[1768403248136,0.74579675,941.82,938.95,2.5741607]
[1768403248337,0.74579675,941.81,938.93,2.5741607]
[1768403248538,0.74579675,941.8,938.93,2.5741607]
[1768403248834,0.74579675,941.79,938.93,2.5741607]
[1768403249137,0.74579675,941.78,938.93,2.5741607]
[1768403249335,0.74579675,941.77,938.93,2.5741607]
[1768403249536,0.74579675,941.76,938.93,2.5741607]
[1768403249737,0.74579675,941.75,938.93,2.5741607]
[1768403250032,0.74579675,941.74,938.93,2.5741607]
[1768403250234,0.74579675,941.73,938.93,2.5741607]
[1768403250438,0.74579675,941.72,938.94,2.5741607]
[1768403250739,0.74579675,941.71,938.94,2.5741607]
[1768403251037,0.74579675,941.7,938.88,2.5741607]
[1768403251237,0.74579675,941.69,938.88,2.5741607]
[1768403251538,1.551,942.51,938.79,2.5741607]
[1768403251539,0.74579675,941.68,938.79,2.5741607]
[1768403251736,0.74579675,941.67,938.79,2.5741607]
[1768403251936,0.74579675,941.66,939.16,2.5741607]
[1768403252137,0.74579675,941.65,939.16,2.5741607]
[1768403252338,0.74579675,941.64,939.16,2.5741607]
[1768403252533,0.74579675,941.63,939.17,2.5741607]
[1768403252738,0.74579675,941.62,939.17,2.5741607]
[1768403252937,0.74579675,941.61,939.17,2.5741607]
[1768403253139,0.74579675,941.6,939.17,2.5741607]
[1768403253334,0.74579675,941.59,939.17,2.5741607]
[1768403253533,0.74579675,941.58,939.23,2.5741607]
[1768403253838,0.74579675,941.57,939.23,2.5741607]
[1768403254137,0.74579675,941.56,939.42,2.5741607]
[1768403254338,0.74579675,941.55,939.42,2.5741607]
[1768403254637,0.74579675,941.54,939.43,2.5741607]
[1768403254834,0.74579675,941.53,939.43,2.5741607]
[1768403255034,0.74579675,941.52,939.43,2.5741607]
[1768403255236,0.74579675,941.51,939.43,2.5741607]
[1768403255541,0.74579675,941.5,939.43,2.5741607]
[1768403255739,0.74579675,941.49,939.42,2.5741607]
[1768403255940,0.74579675,941.48,939.42,2.5741607]
[1768403256240,0.74579675,941.47,939.42,2.5741607]
[1768403256442,0.74579675,941.46,939.42,2.5741607]
[1768403256735,0.74579675,941.45,939.41,2.5741607]
[1768403256935,0.74579675,941.44,939.41,2.5741607]
[1768403257140,0.74579675,941.43,939.34,2.5741607]
[1768403257340,0.74579675,941.42,939.34,2.5741607]
[1768403257540,0.74579675,941.41,939.34,2.5741607]
[1768403257742,0.74579675,941.4,939.35,2.5741607]
[1768403258042,0.74579675,941.39,939.35,2.5741607]
[1768403258337,0.74579675,941.38,939.23,2.5741607]
[1768403258541,0.74579675,941.37,939.23,2.5741607]
[1768403258739,0.74579675,941.36,939.23,2.5741607]
[1768403258936,0.74579675,941.35,939.22,2.5741607]
[1768403259141,0.74579675,941.34,939.22,2.5741607]
[1768403259342,0.74579675,941.33,939.22,2.5741607]
[1768403259537,0.74579675,941.32,939.22,2.5741607]
[1768403259741,0.74579675,941.31,939.22,2.5741607]
[1768403259938,0.74579675,941.31,938.88,3.6689282]
[1768403259939,0.74579675,941.3,939.2,2.5741607]
[1768403260141,0.74579675,941.29,939.2,2.5741607]
[1768403260340,0.74579675,941.28,939.2,2.5741607]
[1768403260542,0.74579675,941.27,939.06,2.5741607]
[1768403260741,0.74579675,941.26,938.96,2.5741607]
[1768403260941,0.74579675,941.25,938.96,2.5741607]
[1768403261140,0.74579675,941.24,938.91,2.5741607]
[1768403261340,0.74579675,941.23,938.91,2.5741607]
[1768403261542,0.74579675,941.22,938.91,2.5741607]
[1768403261737,0.74579675,941.21,938.84,2.5741607]
[1768403261940,0.74579675,941.2,938.84,2.5741607]
[1768403262139,0.74579675,941.19,938.84,2.5741607]
[1768403262443,0.74579675,941.18,938.83,2.5741607]
[1768403262638,0.74579675,941.17,938.83,2.5741607]
[1768403262838,0.74579675,941.16,938.82,2.5741607]
[1768403263039,0.74579675,941.15,938.82,2.5741607]
[1768403263238,0.74579675,941.14,938.85,2.5741607]
[1768403263445,0.74579675,941.13,938.85,2.5741607]
[1768403263641,0.74579675,941.12,938.85,2.5741607]
[1768403263940,0.74579675,941.11,938.9,2.5741607]
[1768403264244,0.74579675,941.1,938.9,2.5741607]
[1768403264444,0.74579675,941.09,938.9,2.5741607]
[1768403264741,0.74579675,941.08,938.9,2.5741607]
[1768403264945,0.74579675,941.07,938.94,2.5741607]
[1768403265141,0.74579675,941.06,938.94,2.5741607]
[1768403265342,0.74579675,941.05,938.94,2.5741607]
[1768403265546,1.551,942.51,938.94,2.5741607]
[1768403265547,0.74579675,941.04,938.94,2.5741607]
[1768403265743,0.74579675,941.03,938.94,2.5741607]
[1768403265945,0.74579675,941.02,938.88,2.5741607]
[1768403266247,0.74579675,941.01,938.88,2.5741607]
[1768403266446,0.74579675,941.0,938.86,2.5741607]
[1768403266744,0.74579675,940.99,938.86,2.5741607]
[1768403266947,0.74579675,940.98,938.86,2.5741607]
[1768403267144,0.74579675,940.97,938.86,2.5741607]
[1768403267346,0.74579675,940.96,938.86,2.5741607]
[1768403267548,0.74579675,940.95,938.86,2.5741607]
[1768403267744,0.74579675,940.94,938.86,2.5741607]
[1768403267945,0.74579675,940.93,938.86,2.5741607]
[1768403268148,0.00788565,941.89,938.86,2.5741607]
[1768403268448,0.75049587,941.88,938.86,2.5741607]
[1768403268642,0.75049587,941.87,938.86,2.5741607]
[1768403268846,0.75049587,941.86,938.86,2.5741607]
[1768403269049,0.75049587,941.85,938.84,2.5741607]
[1768403269246,0.75049587,941.84,938.84,2.5741607]
[1768403269447,0.75049587,941.83,938.84,2.5741607]
[1768403269646,0.75049587,941.82,938.84,2.5741607]
[1768403269847,0.75049587,941.81,938.84,2.5741607]
[1768403270046,1.551,942.51,938.84,2.5741607]
[1768403270047,0.75049587,941.8,938.84,2.5741607]
[1768403270246,0.75049587,941.79,938.84,2.5741607]
[1768403270448,0.75049587,941.78,938.84,2.5741607]
[1768403270647,0.75049587,941.77,938.85,2.5741607]
[1768403270947,0.75049587,941.76,938.85,2.5741607]
[1768403271149,0.75049587,941.75,938.86,2.5741607]
[1768403271353,0.75049587,941.74,938.86,2.5741607]
[1768403271648,0.75049587,941.73,938.87,2.5741607]
[1768403271852,0.75049587,941.72,938.87,2.5741607]
[1768403272047,0.75049587,941.71,938.87,2.5741607]
[1768403272249,0.75049587,941.7,938.87,2.5741607]
[1768403272553,0.75049587,941.69,938.87,2.5741607]
[1768403272750,0.75049587,941.68,938.88,2.5741607]
[1768403272955,0.75049587,941.67,938.88,2.5741607]
[1768403273155,0.75049587,941.66,938.88,2.5741607]
[1768403273357,0.75049587,941.65,938.88,2.5741607]
[1768403273550,0.75049587,941.64,938.88,2.5741607]
[1768403273755,0.75049587,941.63,938.9,2.5741607]
[1768403273952,0.75049587,941.62,938.9,2.5741607]
[1768403274157,0.75049587,941.61,938.91,2.5741607]
[1768403274453,0.75049587,941.6,938.91,2.5741607]
[1768403274655,0.75049587,941.59,938.94,2.5741607]
[1768403274856,0.75049587,941.58,938.94,2.5741607]
[1768403275052,0.75049587,941.57,938.94,2.5741607]
[1768403275257,0.75049587,941.56,938.94,2.5741607]
[1768403275454,0.75049587,941.55,938.94,2.5741607]
[1768403275752,0.75049587,941.54,938.95,2.5741607]
[1768403275952,0.75049587,941.53,938.95,2.5741607]
[1768403276157,0.75049587,941.52,938.95,2.5741607]
[1768403276355,0.75049587,941.51,938.95,2.5741607]
[1768403276658,0.75049587,941.5,938.95,2.5741607]
[1768403276853,0.75049587,941.49,938.96,2.5741607]
[1768403277056,0.75049587,941.48,938.96,2.5741607]
[1768403277353,0.75049587,941.47,938.97,2.5741607]
[1768403277551,0.75049587,941.46,938.97,2.5741607]
[1768403277753,0.75049587,941.45,938.96,2.5741607]
[1768403277951,0.75049587,941.44,938.96,2.5741607]
[1768403278252,0.75049587,941.43,938.79,2.5741607]
[1768403278451,0.75049587,941.42,938.79,2.5741607]
[1768403278652,0.75049587,941.41,938.79,2.5741607]
[1768403278854,0.75049587,941.4,938.81,2.5741607]
[1768403279052,0.75049587,941.39,938.81,2.5741607]
[1768403279256,0.75049587,941.38,938.84,2.5741607]
[1768403279453,0.75049587,941.37,938.84,2.5741607]
[1768403279657,0.75049587,941.36,938.84,2.5741607]
[1768403279858,0.75049587,941.35,938.84,2.5741607]
[1768403280055,0.75049587,941.34,938.84,2.5741607]
[1768403280255,0.75049587,941.33,938.84,2.5741607]
[1768403280457,0.75049587,941.32,938.88,2.5741607]
[1768403280657,0.75049587,941.31,938.88,2.5741607]
[1768403280860,0.75049587,941.3,939.01,2.5741607]
[1768403281057,0.75049587,941.29,939.01,2.5741607]
[1768403281357,0.75049587,941.28,939.05,2.5741607]
[1768403281562,0.75049587,941.27,939.05,2.5741607]
[1768403281760,0.75049587,941.26,939.05,2.5741607]
[1768403281962,0.75049587,941.25,939.05,2.5741607]
[1768403282262,0.75049587,941.24,939.05,2.5741607]
[1768403282458,0.75049587,941.23,939.05,2.5741607]
[1768403282761,0.75049587,941.22,939.05,2.5741607]
[1768403282957,0.75049587,941.21,939.05,2.5741607]
[1768403283157,0.75049587,941.2,939.05,2.5741607]
[1768403283358,0.75049587,941.19,939.05,2.5741607]
[1768403283560,0.75049587,941.18,939.06,2.5741607]
[1768403283759,0.75049587,941.17,939.06,2.5741607]
[1768403283959,0.75049587,941.16,939.05,2.5741607]
[1768403284160,0.75049587,941.15,939.05,2.5741607]
[1768403284360,0.75049587,941.14,939.05,2.5741607]
[1768403284661,0.75049587,941.13,939.06,2.5741607]
[1768403284862,0.75049587,941.12,939.06,2.5741607]
[1768403285061,0.75049587,941.11,938.97,2.5741607]
[1768403285265,0.75049587,941.1,938.97,2.5741607]
[1768403285564,0.75049587,941.09,939.03,2.5741607]
[1768403285764,0.75049587,941.08,939.03,2.5741607]
[1768403285960,0.75049587,941.07,939.03,2.5741607]
[1768403286161,0.75049587,941.06,939.03,2.5741607]
[1768403286461,0.75049587,941.05,939.03,2.5741607]
[1768403286761,0.75049587,941.04,938.99,2.5741607]
[1768403286961,0.75049587,941.03,938.99,2.5741607]
[1768403287165,0.75049587,941.02,938.99,2.5741607]
[1768403287467,0.75049587,941.01,938.99,2.5741607]
[1768403287764,0.75049587,941.0,939.01,2.5741607]
[1768403287962,0.75049587,940.99,939.01,2.5741607]
[1768403288165,0.75049587,940.98,939.02,2.5741607]
[1768403288365,0.75049587,940.97,939.02,2.5741607]
[1768403288563,0.75049587,940.96,939.02,2.5741607]
[1768403288761,0.75049587,940.95,939.02,2.5741607]
[1768403288965,0.75049587,940.94,939.02,2.5741607]
[1768403289162,0.75049587,940.93,939.02,2.5741607]
[1768403289365,0.75049587,940.92,939.02,2.5741607]
[1768403289566,0.75049587,940.91,939.02,2.5741607]
[1768403289766,0.75049587,940.9,938.96,2.5741607]
[1768403289966,0.75049587,940.89,938.96,2.5741607]
[1768403290163,0.75049587,940.88,938.96,2.5741607]
[1768403290367,0.75049587,940.87,938.96,2.5741607]
[1768403290569,0.75049587,940.86,938.96,2.5741607]
[1768403290770,0.75049587,940.85,938.88,2.5741607]
[1768403290965,0.75049587,940.84,938.88,2.5741607]
[1768403291170,0.75049587,940.83,938.88,2.5741607]
[1768403291366,0.75049587,940.82,938.88,2.5741607]
[1768403291563,0.75049587,940.81,938.88,2.5741607]
[1768403291766,1.79,941.4,938.58,0.18495783]
[1768403291767,0.75049587,940.8,938.79,2.5741607]
[1768403291965,0.75049587,940.79,938.79,2.5741607]
[1768403292168,1.79,941.4,938.79,2.5741607]
[1768403292169,0.75049587,940.78,938.79,2.5741607]
[1768403292371,0.75049587,940.77,938.78,2.5741607]
[1768403292564,0.75049587,940.76,938.78,2.5741607]
[1768403292769,0.75049587,940.75,938.76,2.5741607]
[1768403292964,0.75049587,940.74,938.76,2.5741607]
[1768403293264,0.75049587,940.73,938.76,2.5741607]
[1768403293569,0.75049587,940.72,938.74,2.5741607]
[1768403293868,0.75049587,940.71,938.66,2.5741607]
[1768403294069,0.75049587,940.7,938.66,2.5741607]
[1768403294265,0.75049587,940.69,938.66,2.5741607]
[1768403294468,1.79,941.4,938.66,2.5741607]
[1768403294469,0.75049587,940.68,938.66,2.5741607]
[1768403294767,0.75049587,940.67,938.66,2.5741607]
[1768403294968,0.75049587,940.66,938.64,2.5741607]
[1768403295171,0.75049587,940.65,938.58,0.18495783]
[1768403295364,1.79,941.4,938.58,0.18495783]
[1768403295365,0.75049587,940.64,938.58,0.18495783]
[1768403295566,0.75049587,940.63,938.58,0.18495783]
[1768403295869,0.75049587,940.62,938.58,0.18495783]
[1768403296068,0.75049587,940.61,938.58,0.18495783]
[1768403296267,0.75049587,940.6,938.58,0.18495783]
[1768403296571,0.75049587,940.59,938.58,0.18495783]
[1768403296766,0.75049587,940.58,938.58,0.18495783]
[1768403296968,0.75049587,940.57,938.58,0.18495783]
[1768403297170,0.75049587,940.56,938.58,0.18495783]
[1768403297371,0.75049587,940.55,938.58,0.18495783]
[1768403297674,0.75049587,940.54,938.68,2.5741607]
[1768403297869,0.75049587,940.53,938.68,2.5741607]
[1768403298071,0.75049587,940.52,938.68,2.5741607]
[1768403298268,0.75049587,940.51,938.68,2.5741607]
[1768403298473,0.75049587,940.5,938.68,2.5741607]
[1768403298671,0.75049587,940.49,938.68,2.5741607]
[1768403298874,0.75049587,940.48,938.68,2.5741607]
[1768403299071,0.75049587,940.47,938.68,2.5741607]
[1768403299370,0.75049587,940.46,938.68,2.5741607]
[1768403299575,0.75049587,940.45,938.68,2.5741607]
[1768403299870,0.75049587,940.44,938.69,2.5741607]
[1768403300072,0.75049587,940.43,938.69,2.5741607]
[1768403300276,0.75049587,940.42,938.72,2.5741607]
[1768403300477,0.75049587,940.41,938.72,2.5741607]
[1768403300672,0.75049587,940.4,938.72,2.5741607]
[1768403300872,0.75049587,940.39,938.73,2.5741607]
[1768403301074,0.75049587,940.38,938.73,2.5741607]
[1768403301274,0.75049587,940.37,938.73,2.5741607]
[1768403301474,0.75049587,940.36,938.73,2.5741607]
[1768403301678,0.75049587,940.35,938.73,2.5741607]
[1768403301974,0.75049587,940.34,938.73,2.5741607]
[1768403302278,0.75049587,940.33,938.75,2.5741607]
[1768403302474,0.75049587,940.32,938.75,2.5741607]
[1768403302676,0.75049587,940.31,938.63,2.5741607]
[1768403302876,0.75049587,940.3,938.63,2.5741607]
[1768403303077,0.75049587,940.29,938.63,2.5741607]
[1768403303276,0.75049587,940.28,938.63,2.5741607]
[1768403303480,0.75049587,940.27,938.63,2.5741607]
[1768403303673,0.75049587,940.26,938.68,2.5741607]
[1768403303980,0.75049587,940.25,938.68,2.5741607]
[1768403304181,0.75049587,940.24,938.68,2.5741607]
[1768403304479,0.75049587,940.23,938.68,2.5741607]
[1768403304673,0.75049587,940.22,938.68,2.5741607]
[1768403304875,0.75049587,940.21,938.68,2.5741607]
[1768403305075,0.75049587,940.2,938.68,2.5741607]
[1768403305279,0.75049587,940.19,938.67,2.5741607]
[1768403305474,0.75049587,940.18,938.67,2.5741607]
[1768403305679,0.75721509,940.17,938.67,2.5741607]
[1768403305978,0.75721386,940.16,938.67,2.5741607]
[1768403306176,1.79,941.4,938.67,2.5741607]
[1768403306379,0.00797381,941.11,938.67,2.5741607]
[1768403306580,0.75721358,941.1,938.67,2.5741607]
[1768403306775,0.75721358,941.09,938.68,2.5741607]
[1768403306979,0.75721358,941.08,938.68,2.5741607]
[1768403307180,0.75721358,941.07,938.68,2.5741607]
[1768403307478,0.75721358,941.06,938.7,2.5741607]
[1768403307682,0.75721358,941.05,938.7,2.5741607]
[1768403307880,0.75721358,941.04,938.72,2.5741607]
[1768403308078,0.75721358,941.03,938.72,2.5741607]
[1768403308280,0.75721358,941.02,938.72,2.5741607]
[1768403308476,0.75721358,941.02,938.58,0.18495783]
[1768403308477,0.75721358,941.01,938.76,2.5741607]
[1768403308681,0.75721358,941.0,938.76,2.5741607]
[1768403308882,0.75721358,940.99,938.8,2.5741607]
[1768403309078,0.75721358,940.98,938.8,2.5741607]
[1768403309381,0.75721358,940.97,938.8,2.5741607]
[1768403309578,0.75721358,940.96,938.8,2.5741607]
[1768403309780,0.75721358,940.95,938.8,2.5741607]
[1768403309980,0.75721358,940.94,938.8,2.5741607]
[1768403310276,0.75721358,940.93,938.8,2.5741607]
[1768403310477,0.75721358,940.92,938.81,2.5741607]
[1768403310681,0.75721358,940.91,938.81,2.5741607]
[1768403310879,1.79,941.4,938.81,2.5741607]
[1768403310880,0.75721358,940.9,938.81,2.5741607]
[1768403311078,0.75721358,940.89,938.81,2.5741607]
[1768403311376,0.75721358,940.88,938.81,2.5741607]
[1768403311579,0.75721358,940.87,938.81,2.5741607]
[1768403311777,0.75721358,940.86,938.81,2.5741607]
[1768403311981,0.75721358,940.85,938.81,2.5741607]
[1768403312279,0.75721358,940.84,938.81,2.5741607]
[1768403312478,0.75721358,940.83,938.8,2.5741607]
[1768403312681,0.75721358,940.82,938.8,2.5741607]
[1768403312877,0.75721358,940.81,938.8,2.5741607]
[1768403313178,0.75721358,940.8,938.8,2.5741607]
[1768403313478,0.75721358,940.79,938.8,2.5741607]
[1768403313681,0.75721358,940.78,938.8,2.5741607]
[1768403313882,0.75721358,940.77,938.8,2.5741607]
[1768403314079,0.75721358,940.76,938.8,2.5741607]
[1768403314379,0.75721358,940.75,938.8,2.5741607]
[1768403314682,0.75721358,940.74,938.58,0.18495783]
[1768403314982,0.75721358,940.73,938.58,0.18495783]
[1768403315181,0.75721358,940.72,938.58,0.18495783]
[1768403315386,0.75721358,940.71,938.58,0.18495783]
[1768403315582,0.75721358,940.7,938.58,0.18495783]
[1768403315779,0.75721358,940.69,938.58,0.18495783]
[1768403315981,0.75721358,940.68,938.58,0.18495783]
[1768403316180,0.75721358,940.67,938.58,0.18495783]
[1768403316382,0.75721358,940.66,938.58,0.18495783]
[1768403316581,0.75721358,940.65,938.58,0.18495783]
[1768403316780,0.75721358,940.64,938.58,0.18495783]
[1768403316981,0.75721358,940.63,938.58,0.18495783]
[1768403317180,0.75721358,940.62,938.58,0.18495783]
[1768403317380,0.75721358,940.61,938.58,0.18495783]
[1768403317583,0.75721358,940.6,938.58,0.18495783]
[1768403317782,0.75721358,940.59,938.58,0.18495783]
[1768403317980,0.75721358,940.58,938.58,0.18495783]
[1768403318285,0.75721358,940.57,938.58,0.18495783]
[1768403318485,0.75721358,940.56,938.58,0.18495783]
[1768403318679,0.75721358,940.55,938.58,0.18495783]
[1768403318880,0.75721358,940.54,938.58,0.18495783]
[1768403319086,0.75721358,940.53,938.58,0.18495783]
[1768403319287,0.75721358,940.52,938.58,0.18495783]
[1768403319586,0.75721358,940.51,938.58,0.18495783]
[1768403319786,0.75721358,940.5,938.58,0.18495783]
[1768403320082,0.75721358,940.49,938.58,0.18495783]
[1768403320387,0.75721358,940.48,938.58,0.18495783]
[1768403320684,0.75721358,940.47,938.58,0.18495783]
[1768403320882,0.75721358,940.46,938.58,0.18495783]
[1768403321086,0.75721358,940.45,938.58,0.18495783]
[1768403321285,0.75721358,940.44,938.58,0.18495783]
[1768403321487,0.75721358,940.43,938.58,0.18495783]
[1768403321687,0.75721358,940.42,938.58,0.18495783]
[1768403321983,0.75721358,940.41,938.58,0.18495783]
[1768403322184,0.75721358,940.4,938.58,0.18495783]
[1768403322387,0.75721358,940.39,938.58,0.18495783]
[1768403322584,0.75721358,940.38,938.58,0.18495783]
[1768403322888,0.75721358,940.37,938.58,0.18495783]
[1768403323088,0.75721358,940.36,938.58,0.18495783]
[1768403323288,0.75721358,940.35,938.58,0.18495783]
[1768403323490,0.75721358,940.34,938.58,0.18495783]
[1768403323688,0.75721358,940.33,938.58,0.18495783]
[1768403323888,0.75721358,940.32,938.58,0.18495783]
[1768403324185,0.75721358,940.31,938.58,0.18495783]
[1768403324389,0.75721358,940.3,938.58,0.18495783]
[1768403324588,0.75721358,940.29,938.58,0.18495783]
[1768403324788,0.75721358,940.28,938.58,0.18495783]
[1768403324984,0.75721358,940.27,938.58,0.18495783]
[1768403325185,0.75721358,940.26,938.58,0.18495783]
[1768403325488,0.75721358,940.25,938.58,0.18495783]
[1768403325689,0.75721358,940.24,938.63,2.5741607]
[1768403325889,1.598,940.25,938.63,2.5741607]
[1768403326190,1.598,940.25,938.67,2.5741607]
[1768403326684,1.598,940.25,938.72,2.5741607]
[1768403327789,1.598,940.25,938.81,2.5741607]
[1768403328185,1.598,940.25,938.85,2.5741607]
[1768403328690,1.598,940.25,939.0,2.5741607]
[1768403329184,1.598,940.25,939.3,2.5741607]
[1768403329686,1.598,940.25,939.29,2.5741607]
[1768403330787,1.598,940.25,939.28,2.5741607]
[1768403331393,1.598,940.25,939.27,2.5741607]
[1768403332496,1.598,940.25,939.26,2.5741607]
[1768403332897,1.598,940.25,939.22,2.5741607]
[1768403333394,1.598,940.25,939.21,2.5741607]
[1768403333598,1.598,940.25,939.07,2.5741607]
[1768403334098,1.598,940.25,939.06,2.5741607]
[1768403336601,1.598,940.25,939.05,2.5741607]
[1768403337597,1.598,940.25,939.04,2.5741607]
[1768403338702,1.598,940.25,939.03,2.5741607]
[1768403340401,1.598,940.25,939.04,2.5741607]
[1768403341801,1.598,940.25,939.03,2.5741607]
[1768403343307,1.598,940.25,939.05,2.5741607]
[1768403343904,1.598,940.25,939.07,2.5741607]
[1768403344410,1.598,940.25,939.06,2.5741607]
[1768403344906,1.598,940.25,939.07,2.5741607]
[1768403345408,1.598,940.25,939.08,2.5741607]
[1768403346412,1.598,940.25,939.07,2.5741607]
[1768403347512,1.598,940.25,939.1,2.5741607]
[1768403348012,1.598,940.25,939.15,2.5741607]
[1768403348512,1.598,940.25,939.14,2.5741607]